fUST/lending_fUST_20240725
["ID","MTS","AMOUNT","RATE_DAILY","PERIOD"]
[333110008,1721872242902,-150.112233,0.000137,2]
[333110009,1721872242912,-150.112233,0.000137,2]
[333110010,1721872242922,-150.112233,0.000138,2]
[333110011,1721872242933,-150.112233,0.000138,2]
[333110012,1721872242943,-1801.81696807,0.00013872,2]
[333110013,1721872242952,-150.112233,0.000139,2]
[333110014,1721872242963,-150.112233,0.000139,2]
[333110015,1721872242974,-150.112233,0.000139,2]
[333110016,1721872242986,-150.112233,0.000139,2]
[333110017,1721872242996,-500.0,0.0001396,2]
[333110018,1721872243007,-14591.3409353,0.00013962,2]
[333110019,1721872243017,-24318.9015588,0.00013962,2]
[333110020,1721872243028,-445.07089119,0.0001397,2]
[333110021,1721872243038,-500.0,0.0001397,2]
[333110022,1721872243049,-500.0,0.00013971,2]
[333110023,1721872243059,-500.0,0.00013971,2]
[333110024,1721872243070,-500.0,0.00013971,2]
[333110025,1721872243081,-500.0,0.00013971,2]
[333110026,1721872243092,-500.0,0.00013971,2]
[333110027,1721872243101,-500.0,0.00013971,2]
[333110028,1721872243110,-500.0,0.00013971,2]
[333110029,1721872243122,-58168.33736768,0.00013972,5]
[333110031,1721872243294,-28810.65523885,0.00013972,5]
[333110034,1721872243308,-684.16400327,0.00013972,5]
[333110143,1721872244627,-500.43005604,0.00013698,2]
[333110145,1721872244638,-190.77700505,0.00013698,2]
[333110147,1721872244652,-309.22299495,0.00013698,2]
[333110149,1721872244662,-500.0,0.00013698,2]
[333110152,1721872244673,-7811.83,0.00013698,2]
[333110154,1721872244684,-500.0,0.00013698,2]
[333110156,1721872244695,-500.0,0.00013698,2]
[333110158,1721872244707,-500.0,0.00013698,2]
[333110160,1721872244722,-500.0,0.00013698,2]
[333110162,1721872244732,-500.0,0.00013698,2]
[333110164,1721872244743,-500.0,0.00013698,2]
[333110166,1721872244754,-500.0,0.00013698,2]
[333110168,1721872244763,-500.0,0.00013698,2]
[333110170,1721872244774,-500.0,0.00013698,2]
[333110173,1721872244787,-500.0,0.00013698,2]
[333110175,1721872244797,-500.0,0.00013698,2]
[333110177,1721872244809,-200.0,0.00013698,2]
[333110179,1721872244819,-500.0,0.00013698,2]
[333110181,1721872244831,-25796.33607396,0.00013972,5]
[333110184,1721872244845,-818.13,0.00013972,5]
[333110186,1721872244859,-6744.91019837,0.00013972,5]
[333110188,1721872244871,-504.72153734,0.00013972,2]
[333110190,1721872244882,-491.94375197,0.00013972,2]
[333110192,1721872244892,-504.06719056,0.00013972,2]
[333110194,1721872244902,-503.96515501,0.00013972,2]
[333110196,1721872244914,-500.0,0.00013972,2]
[333110199,1721872244926,-504.94031148,0.00013972,2]
[333110201,1721872244939,-500.0,0.00013972,2]
[333110203,1721872244949,-640.52,0.00013972,2]
[333110205,1721872244960,-248.43115385,0.00013972,2]
[333110207,1721872244974,-500.0,0.00013972,2]
[333110209,1721872244983,-1076.07,0.00013972,2]
[333110211,1721872244994,-500.0,0.00013972,2]
[333110213,1721872245003,-1253.95,0.00013972,2]
[333110215,1721872245014,-500.0,0.00013972,2]
[333110216,1721872245023,-539.80554346,0.00013972,2]
[333110219,1721872245035,-500.0,0.00013972,2]
[333110221,1721872245045,-505.22376335,0.00013972,2]
[333110223,1721872245055,-500.0,0.00013972,2]
[333110225,1721872245064,-2205.29663988,0.00013972,2]
[333110227,1721872245079,-893.27336012,0.00013972,2]
[333110229,1721872245090,-513.27293218,0.00013972,2]
[333110231,1721872245102,-500.0,0.00013972,2]
[333110233,1721872245112,-506.04164415,0.00013972,2]
[333110235,1721872245121,-500.0,0.00013972,2]
[333110237,1721872245133,-250.63252166,0.00013972,2]
[333110239,1721872245145,-573.34218279,0.00013972,2]
[333110242,1721872245155,-500.0,0.00013972,2]
[333110244,1721872245166,-1618.04,0.00013972,2]
[333110246,1721872245176,-581.69537892,0.00013972,2]
[333110296,1721872246328,-664.494177,9.999e-05,2]
[333110298,1721872246339,-296.51346171,0.0001,2]
[333110300,1721872246349,-500.0,0.00013698,2]
[333110302,1721872246361,-565.41462108,0.00013972,2]
[333110305,1721872246371,-1050.17,0.00013972,2]
[333110307,1721872246383,-569.17,0.00013972,2]
[333110309,1721872246394,-1210.06,0.00013972,2]
[333110311,1721872246405,-503.57798432,0.00013972,2]
[333110313,1721872246415,-6.79971589,0.00013972,2]
[333110572,1721873157481,802.0,0.00025,120]
[333110574,1721873233156,-298.69654142,9.316e-05,2]
[333110576,1721873352107,-300.0,9.315e-05,2]
[333110577,1721873352129,-300.0,9.315e-05,2]
[333110578,1721873352151,-1452.98621234,9.316e-05,2]
[333110579,1721873352175,-3787.93065496,9.316e-05,2]
[333110580,1721873352199,-200.0,9.32e-05,2]
[333110581,1721873352223,-7774.90529812,9.441e-05,2]
[333110582,1721873357128,-2358.45947667,9.347e-05,2]
[333110583,1721873357152,-17125.09470188,9.441e-05,2]
[333110584,1721873357176,-1551.68275376,9.505e-05,2]
[333110585,1721873357199,-404.89703838,9.999e-05,2]
[333110586,1721873357221,-288.28494131,9.999e-05,2]
[333110587,1721873357417,-539.46336343,9.999e-05,2]
[333110588,1721873357441,-163.93199893,9.999e-05,2]
[333110589,1721873357463,-200.70502936,9.999e-05,2]
[333110590,1721873357484,-519.62807178,9.999e-05,2]
[333110591,1721873357508,-154.71704716,9.999e-05,2]
[333110592,1721873357529,-197.00878616,9.999e-05,2]
[333110593,1721873357553,-460.01594021,9.999e-05,2]
[333110594,1721873357577,-376.29384412,9.999e-05,2]
[333110595,1721873357600,-155.92581192,9.999e-05,2]
[333110596,1721873357624,-223.39374287,9.999e-05,2]
[333110597,1721873357648,-154.86860538,0.0001,2]
[333110598,1721873357672,-400.0,0.0001069,2]
[333110599,1721873357698,-348.21,0.00010959,2]
[333110600,1721873357718,-1628.08177913,0.00011292,2]
[333110601,1721873357738,-22.78936812,0.00011292,2]
[333111119,1721873438800,-200.0,0.0001,2]
[333111120,1721873438813,-375.7190477,0.00011292,2]
[333111121,1721873438825,-400.0,0.0001137,2]
[333111122,1721873438837,-153.0,0.00012778,2]
[333111123,1721873438851,-600.0,0.00013147,2]
[333111124,1721873438864,-200.0,0.00013425,2]
[333111125,1721873438876,-1751.61111321,0.00013598,2]
[333111126,1721873438888,-206.6937542,0.000136,2]
[333111127,1721873438901,-9663.0,0.0001368,2]
[333111128,1721873438912,-234.28341142,0.00013687,2]
[333111129,1721873438923,-1006.30633384,0.00013687,2]
[333111130,1721873438934,-844.24080952,0.00013688,2]
[333111131,1721873438947,-32037.12460543,0.00013688,2]
[333111132,1721873438962,-1150.26515868,0.00013688,2]
[333111133,1721873438976,-3094.79240663,0.00013688,2]
[333111134,1721873438999,-6986.23838379,0.00013688,2]
[333111135,1721873439014,-29174.81133575,0.00013688,2]
[333111136,1721873439025,-503.60558488,0.00013698,2]
[333111137,1721873439038,-505.07215551,0.00013698,2]
[333111138,1721873439049,-1462.23,0.00013698,2]
[333111139,1721873439062,-1462.23,0.00013698,2]
[333111140,1721873439075,-1462.23,0.00013698,2]
[333111141,1721873439087,-1462.23,0.00013698,2]
[333111142,1721873439101,-1462.23,0.00013698,2]
[333111143,1721873439114,-1462.23,0.00013698,2]
[333111144,1721873439126,-1462.23,0.00013698,2]
[333111145,1721873439137,-1462.23,0.00013698,2]
[333111146,1721873439147,-1462.23,0.00013698,2]
[333111147,1721873439157,-1462.23,0.00013698,2]
[333111148,1721873439168,-1462.23,0.00013698,2]
[333111149,1721873439184,-1462.23,0.00013698,2]
[333111150,1721873439195,-1462.23,0.00013698,2]
[333111151,1721873439208,-1462.23,0.00013698,2]
[333111152,1721873439222,-1462.23,0.00013698,2]
[333111153,1721873439236,-1462.23,0.00013698,2]
[333111154,1721873439250,-1462.23,0.00013698,2]
[333111155,1721873439262,-1462.23,0.00013698,2]
[333111156,1721873439275,-1462.23,0.00013698,2]
[333111157,1721873439288,-1462.23,0.00013698,2]
[333111158,1721873439299,-1462.23,0.00013698,2]
[333111159,1721873439312,-1462.23,0.00013698,2]
[333111160,1721873439323,-1462.23,0.00013698,2]
[333111161,1721873439335,-1462.34035557,0.00013698,2]
[333111162,1721873439346,-502.98975606,0.00013698,2]
[333111163,1721873439357,-503.94226395,0.00013698,2]
[333111164,1721873439368,-505.18981444,0.00013698,2]
[333111165,1721873439379,-506.04307487,0.00013698,2]
[333111166,1721873439390,-502.83005854,0.00013698,2]
[333111167,1721873439401,-500.0,0.00013698,2]
[333111168,1721873439414,-508.10859542,0.00013698,2]
[333111169,1721873439425,-1149.46,0.00013698,2]
[333111170,1721873439437,-504.75278503,0.00013698,2]
[333111171,1721873439448,-503.92135759,0.00013698,2]
[333111172,1721873439459,-500.0,0.00013698,2]
[333111173,1721873439471,-500.0,0.00013698,2]
[333111174,1721873439482,-255.15035679,0.00013698,2]
[333111175,1721873439498,-504.18140264,0.00013698,2]
[333111176,1721873439509,-509.66911467,0.00013698,2]
[333111178,1721873439520,-500.0,0.00013698,2]
[333111180,1721873439532,-504.13963468,0.00013698,2]
[333111182,1721873439543,-506.13370331,0.00013698,2]
[333111183,1721873439554,-506.07318897,0.00013698,2]
[333111185,1721873439565,-500.0,0.00013698,2]
[333111188,1721873439577,-602.51701494,0.00013698,2]
[333111190,1721873439588,-500.0,0.00013698,2]
[333111192,1721873439599,-290.0,0.00013698,2]
[333111194,1721873439611,-469.29678141,0.00013698,2]
[333111196,1721873439623,-501.47223563,0.00013698,2]
[333111198,1721873439634,-496.07579,0.00013698,2]
[333111200,1721873439645,-502.20969147,0.00013698,2]
[333111203,1721873439656,-500.0,0.00013698,2]
[333111205,1721873439667,-511.85615867,0.00013698,2]
[333111207,1721873439677,-248.14040933,0.00013698,2]
[333111209,1721873439689,-503.4661935,0.00013698,2]
[333111211,1721873439700,-508.63240197,0.00013698,2]
[333111214,1721873439712,-500.0,0.00013698,2]
[333111216,1721873439724,-500.0,0.00013698,2]
[333111218,1721873439736,-503.09978246,0.00013698,2]
[333111220,1721873439748,-500.0,0.00013698,2]
[333111223,1721873439775,-500.0,0.00013698,2]
[333111226,1721873439787,-500.0,0.00013698,2]
[333111228,1721873439801,-500.89252704,0.00013698,2]
[333111231,1721873439816,-500.0,0.00013698,2]
[333111233,1721873439830,-502.74580053,0.00013698,2]
[333111236,1721873439845,-500.0,0.00013698,2]
[333111238,1721873439858,-500.0,0.00013698,2]
[333111241,1721873439871,-1327.23,0.00013698,2]
[333111243,1721873439885,-500.0,0.00013698,2]
[333111245,1721873439898,-500.0,0.00013698,2]
[333111248,1721873439912,-504.02032376,0.00013698,2]
[333111250,1721873439925,-504.02943705,0.00013698,2]
[333111252,1721873439937,-500.0,0.00013698,2]
[333111255,1721873439949,-502.79018372,0.00013698,2]
[333111257,1721873439962,-500.0,0.00013698,2]
[333111259,1721873439974,-500.0,0.00013698,2]
[333111263,1721873439987,-503.14607474,0.00013698,2]
[333111266,1721873439999,-1825.19,0.00013698,2]
[333111270,1721873440013,-500.0,0.00013698,2]
[333111274,1721873440026,-500.0,0.00013698,2]
[333111277,1721873440037,-500.0,0.00013698,2]
[333111280,1721873440050,-506.75524932,0.00013698,2]
[333111282,1721873440061,-500.0,0.00013698,2]
[333111285,1721873440073,-500.0,0.00013698,2]
[333111287,1721873440085,-503.74727842,0.00013698,2]
[333111289,1721873440098,-500.0,0.00013698,2]
[333111291,1721873440110,-1854.61,0.00013698,2]
[333111294,1721873440121,-507.42634205,0.00013698,2]
[333111296,1721873440133,-500.0,0.00013698,2]
[333111298,1721873440145,-500.0,0.00013698,2]
[333111300,1721873440157,-500.0,0.00013698,2]
[333111302,1721873440169,-500.0,0.00013698,2]
[333111305,1721873440181,-504.57876301,0.00013698,2]
[333111307,1721873440193,-509.68290829,0.00013698,2]
[333111309,1721873440204,-500.0,0.00013698,2]
[333111311,1721873440216,-500.0,0.00013698,2]
[333111313,1721873440227,-500.0,0.00013698,2]
[333111316,1721873440240,-500.0,0.00013698,2]
[333111318,1721873440252,-500.0,0.00013698,2]
[333111320,1721873440262,-1390.3,0.00013698,2]
[333111322,1721873440273,-516.97210084,0.00013698,2]
[333111324,1721873440285,-501.29534174,0.00013698,2]
[333111327,1721873440296,-500.0,0.00013698,2]
[333111329,1721873440310,-503.16092509,0.00013698,2]
[333111331,1721873440321,-1483.21,0.00013698,2]
[333111333,1721873440332,-650.06,0.00013698,2]
[333111335,1721873440343,-503.18072347,0.00013698,2]
[333111338,1721873440354,-962.65,0.00013698,2]
[333111340,1721873440365,-500.0,0.00013698,2]
[333111342,1721873440376,-502.90328145,0.00013698,2]
[333111344,1721873440388,-1594.99,0.00013698,2]
[333111346,1721873440398,-500.0,0.00013698,2]
[333111349,1721873440409,-500.0,0.00013698,2]
[333111351,1721873440421,-503.97125021,0.00013698,2]
[333111353,1721873440432,-502.95898011,0.00013698,2]
[333111355,1721873440443,-504.42717795,0.00013698,2]
[333111357,1721873440455,-501.55807119,0.00013698,2]
[333111359,1721873440466,-503.83171218,0.00013698,2]
[333111362,1721873440476,-506.81701149,0.00013698,2]
[333111364,1721873440488,-504.87979149,0.00013698,2]
[333111366,1721873440499,-500.0,0.00013698,2]
[333111368,1721873440510,-500.0,0.00013698,2]
[333111370,1721873440521,-500.0,0.00013698,2]
[333111372,1721873440533,-644.25,0.00013698,2]
[333111375,1721873440545,-506.73418413,0.00013698,2]
[333111377,1721873440555,-500.0,0.00013698,2]
[333111379,1721873440568,-500.0,0.00013698,2]
[333111381,1721873440578,-505.91353389,0.00013698,2]
[333111383,1721873440588,-502.22399325,0.00013698,2]
[333111385,1721873440598,-578.43,0.00013698,2]
[333111387,1721873440609,-644.29826713,0.00013698,2]
[333111389,1721873440618,-521.73,0.00013698,2]
[333111391,1721873440628,-1570.68,0.00013698,2]
[333111394,1721873440638,-500.0,0.00013698,2]
[333111396,1721873440648,-500.0,0.00013698,2]
[333111398,1721873440660,-500.0,0.00013698,2]
[333111400,1721873440670,-1051.52,0.00013698,2]
[333111402,1721873440680,-916.79,0.00013698,2]
[333111404,1721873440690,-1385.49,0.00013698,2]
[333111434,1721873440699,-500.0,0.00013698,2]
[333111437,1721873440976,-500.0,0.00013698,2]
[333111439,1721873440993,-360.96765837,0.00013698,2]
[333111441,1721873441003,-1109.23,0.00013698,2]
[333111443,1721873441012,-180.43089525,0.00013698,2]
[333111445,1721873441022,-549.70153366,0.00013698,2]
[333111448,1721873441033,-500.0,0.00013698,2]
[333111450,1721873441042,-370.88346484,0.00013698,2]
[333111452,1721873441051,-500.0,0.00013698,2]
[333111454,1721873441061,-504.16219307,0.00013698,2]
[333111456,1721873441072,-501.41004709,0.00013698,2]
[333111458,1721873441082,-500.0,0.00013698,2]
[333111460,1721873441092,-603.38514548,0.00013698,2]
[333111461,1721873441102,-1468.0,0.00013698,2]
[333111462,1721873441112,-503.41575297,0.00013698,2]
[333111463,1721873441122,-503.44154612,0.00013698,2]
[333111464,1721873441132,-515.53496397,0.00013698,2]
[333111465,1721873441143,-506.58152275,0.00013698,2]
[333111466,1721873441152,-501.70296223,0.00013698,2]
[333111467,1721873441162,-504.29395403,0.00013698,2]
[333111468,1721873441172,-514.28646821,0.00013698,2]
[333111469,1721873441183,-506.01449229,0.00013698,2]
[333111470,1721873441193,-500.0,0.00013698,2]
[333111471,1721873441203,-504.3104575,0.00013698,2]
[333111472,1721873441212,-500.0,0.00013698,2]
[333111473,1721873441222,-170.38399636,0.00013698,2]
[333111474,1721873441232,-500.0,0.00013698,2]
[333111475,1721873441244,-687.96,0.00013698,2]
[333111476,1721873441253,-500.0,0.00013698,2]
[333111477,1721873441266,-504.72820375,0.00013698,2]
[333111478,1721873441276,-636.52,0.00013698,2]
[333111480,1721873441286,-520.11789734,0.00013698,2]
[333111481,1721873441296,-504.43162346,0.00013698,2]
[333111483,1721873441306,-500.0,0.00013698,2]
[333111485,1721873441316,-504.31393444,0.00013698,2]
[333111487,1721873441326,-502.33688074,0.00013698,2]
[333111489,1721873441336,-500.03,0.00013698,2]
[333111491,1721873441346,-500.0,0.00013698,2]
[333111493,1721873441356,-500.0,0.00013698,2]
[333111495,1721873441366,-505.89250674,0.00013698,2]
[333111497,1721873441376,-502.39494819,0.00013698,2]
[333111499,1721873441385,-502.25901746,0.00013698,2]
[333111501,1721873441395,-500.0,0.00013698,2]
[333111503,1721873441405,-514.38798571,0.00013698,2]
[333111505,1721873441414,-500.0,0.00013698,2]
[333111507,1721873441423,-1020.44,0.00013698,2]
[333111509,1721873441434,-503.16004595,0.00013698,2]
[333111510,1721873441443,-504.53262261,0.00013698,2]
[333111511,1721873441453,-502.97355465,0.00013698,2]
[333111512,1721873441463,-504.65186402,0.00013698,2]
[333111513,1721873441473,-504.23524958,0.00013698,2]
[333111514,1721873441483,-1231.94,0.00013698,2]
[333111515,1721873441494,-500.0,0.00013698,2]
[333111516,1721873441504,-568.12012604,0.00013698,2]
[333111517,1721873441513,-500.0,0.00013698,2]
[333111518,1721873441524,-641.15,0.00013698,2]
[333111519,1721873441533,-500.0,0.00013698,2]
[333111520,1721873441544,-500.0,0.00013698,2]
[333111521,1721873441554,-533.68203474,0.00013698,2]
[333111522,1721873441564,-500.0,0.00013698,2]
[333111524,1721873441575,-510.11642446,0.00013698,2]
[333111525,1721873441585,-723.66,0.00013698,2]
[333111527,1721873441595,-503.21592375,0.00013698,2]
[333111529,1721873441605,-1515.61,0.00013698,2]
[333111531,1721873441614,-786.15,0.00013698,2]
[333111533,1721873441624,-561.12,0.00013698,2]
[333111535,1721873441634,-503.6205117,0.00013698,2]
[333111537,1721873441644,-628.03,0.00013698,2]
[333111539,1721873441654,-500.0,0.00013698,2]
[333111541,1721873441663,-500.0,0.00013698,2]
[333111543,1721873441675,-500.0,0.00013698,2]
[333111545,1721873441684,-1585.48,0.00013698,2]
[333111547,1721873441694,-500.0,0.00013698,2]
[333111550,1721873441704,-1121.82,0.00013698,2]
[333111552,1721873441714,-505.14755196,0.00013698,2]
[333111553,1721873441723,-515.5375262,0.00013698,2]
[333111556,1721873441733,-502.63580816,0.00013698,2]
[333111558,1721873441744,-505.77335045,0.00013698,2]
[333111560,1721873441754,-500.0,0.00013698,2]
[333111561,1721873441764,-507.82708055,0.00013698,2]
[333111564,1721873441773,-500.0,0.00013698,2]
[333111566,1721873441783,-500.0,0.00013698,2]
[333111567,1721873441793,-500.0,0.00013698,2]
[333111569,1721873441802,-500.0,0.00013698,2]
[333111571,1721873441812,-500.0,0.00013698,2]
[333111573,1721873441821,-500.0,0.00013698,2]
[333111576,1721873441832,-445.07089119,0.00013698,2]
[333111579,1721873441851,-1764.36,0.00013698,2]
[333111581,1721873441862,-503.83353162,0.00013698,2]
[333111583,1721873441872,-500.0,0.00013698,2]
[333111585,1721873441882,-525.62,0.00013698,2]
[333111587,1721873441892,-500.0,0.00013698,2]
[333111589,1721873441902,-518.65520963,0.00013698,2]
[333111591,1721873441912,-505.66509828,0.00013698,2]
[333111593,1721873441922,-500.0,0.00013698,2]
[333111595,1721873441932,-952.06,0.00013698,2]
[333111597,1721873441943,-956.18,0.00013698,2]
[333111599,1721873441954,-501.29786532,0.00013698,2]
[333111601,1721873441964,-500.0,0.00013698,2]
[333111603,1721873441974,-503.15485837,0.00013698,2]
[333111605,1721873441984,-993.84,0.00013698,2]
[333111608,1721873441996,-500.0,0.00013698,2]
[333111610,1721873442006,-4125.74,0.00013698,2]
[333111612,1721873442016,-505.28780078,0.00013698,2]
[333111614,1721873442027,-7707.67,0.00013698,2]
[333111616,1721873442037,-1712.81,0.00013698,2]
[333111618,1721873442048,-1226.73,0.00013698,2]
[333111620,1721873442059,-1082.59,0.00013698,2]
[333111622,1721873442069,-503.51068182,0.00013698,2]
[333111624,1721873442079,-500.0,0.00013698,2]
[333111626,1721873442089,-1425.12,0.00013698,2]
[333111628,1721873442100,-1100.32,0.00013698,2]
[333111630,1721873442110,-572.41,0.00013698,2]
[333111632,1721873442121,-1780.96,0.00013698,2]
[333111634,1721873442132,-3473.88,0.00013698,2]
[333111636,1721873442141,-300.12643525,0.00013698,2]
[333111638,1721873442151,-500.0,0.00013698,2]
[333111640,1721873442161,-507.16158745,0.00013698,2]
[333111643,1721873442172,-611.24,0.00013698,2]
[333111645,1721873442183,-611.24,0.00013698,2]
[333111647,1721873442193,-611.24,0.00013698,2]
[333111649,1721873442203,-611.24,0.00013698,2]
[333111651,1721873442213,-611.24,0.00013698,2]
[333111653,1721873442223,-611.24,0.00013698,2]
[333111655,1721873442234,-500.0,0.00013698,2]
[333111657,1721873442245,-611.24,0.00013698,2]
[333111659,1721873442255,-611.24,0.00013698,2]
[333111661,1721873442266,-611.24,0.00013698,2]
[333111663,1721873442277,-500.0,0.00013698,2]
[333111665,1721873442289,-611.24,0.00013698,2]
[333111667,1721873442298,-555.22,0.00013698,2]
[333111669,1721873442308,-504.22098089,0.00013698,2]
[333111671,1721873442318,-1416.71,0.00013698,2]
[333111673,1721873442328,-3598.57,0.00013698,2]
[333111675,1721873442338,-500.0,0.00013698,2]
[333111677,1721873442349,-500.0,0.00013698,2]
[333111679,1721873442359,-825.17,0.00013698,2]
[333111682,1721873442369,-500.0,0.00013698,2]
[333111684,1721873442380,-757.5,0.00013698,2]
[333111686,1721873442390,-505.23230506,0.00013698,2]
[333111688,1721873442401,-500.0,0.00013698,2]
[333111690,1721873442411,-2084.0,0.00013698,2]
[333111692,1721873442422,-586.27,0.00013698,2]
[333111694,1721873442432,-500.0,0.00013698,2]
[333111696,1721873442441,-500.0,0.00013698,2]
[333111698,1721873442452,-1681.19,0.00013698,2]
[333111700,1721873442462,-500.0,0.00013698,2]
[333111702,1721873442472,-521.65993509,0.00013698,2]
[333111704,1721873442482,-500.0,0.00013698,2]
[333111706,1721873442492,-606.84197942,0.00013698,2]
[333111708,1721873442503,-500.0,0.00013698,2]
[333111710,1721873442513,-1470.43,0.00013698,2]
[333111712,1721873442522,-503.1868378,0.00013698,2]
[333111714,1721873442532,-500.0,0.00013698,2]
[333111716,1721873442541,-500.0,0.00013698,2]
[333111718,1721873442552,-2079.93,0.00013698,2]
[333111720,1721873442562,-500.0,0.00013698,2]
[333111722,1721873442571,-500.0,0.00013698,2]
[333111724,1721873442581,-771.29,0.00013698,2]
[333111726,1721873442591,-380.36167108,0.00013698,2]
[333111728,1721873442601,-3793.36,0.00013698,2]
[333111731,1721873442611,-551.93,0.00013698,2]
[333111736,1721873442621,-1596.66,0.00013698,2]
[333111740,1721873442631,-502.96049263,0.00013698,2]
[333111743,1721873442641,-4321.45,0.00013698,2]
[333111747,1721873442651,-505.92978502,0.00013698,2]
[333111750,1721873442660,-502.7971173,0.00013698,2]
[333111754,1721873442670,-12546.29,0.00013698,2]
[333111758,1721873442681,-2293.99,0.00013698,2]
[333111761,1721873442690,-647.32618468,0.00013698,2]
[333111764,1721873442700,-659.54,0.00013698,2]
[333111767,1721873442709,-500.0,0.00013698,2]
[333111770,1721873442720,-5945.7,0.00013698,2]
[333111773,1721873442729,-2509.9,0.00013698,2]
[333111776,1721873442740,-503.02431613,0.00013698,2]
[333111779,1721873442752,-587.14,0.00013698,2]
[333111782,1721873442761,-500.0,0.00013698,2]
[333111785,1721873442770,-500.0,0.00013698,2]
[333111788,1721873442781,-505.20064033,0.00013698,2]
[333111791,1721873442790,-9751.72,0.00013698,2]
[333111793,1721873442799,-2222.38,0.00013698,2]
[333111795,1721873442808,-502.77395789,0.00013698,2]
[333111796,1721873442817,-500.0,0.00013698,2]
[333111798,1721873442826,-570.1,0.00013698,2]
[333111801,1721873442836,-503.38387286,0.00013698,2]
[333111803,1721873442845,-1728.69,0.00013698,2]
[333111804,1721873442854,-1260.18,0.00013698,2]
[333111807,1721873442864,-505.78055762,0.00013698,2]
[333111809,1721873442874,-500.0,0.00013698,2]
[333111811,1721873442883,-503.54333543,0.00013698,2]
[333111813,1721873442893,-768.45,0.00013698,2]
[333111815,1721873442902,-500.0,0.00013698,2]
[333111817,1721873442911,-500.0,0.00013698,2]
[333111819,1721873442921,-653.64,0.00013698,2]
[333111821,1721873442930,-500.0,0.00013698,2]
[333111823,1721873442940,-4573.67,0.00013698,2]
[333111825,1721873442949,-511.32530047,0.00013698,2]
[333111827,1721873442958,-600.88,0.00013698,2]
[333111829,1721873442968,-1648.8,0.00013698,2]
[333111831,1721873442977,-500.0,0.00013698,2]
[333111833,1721873442989,-131.81968379,0.00013698,2]
[333112258,1721873447322,-368.18031621,0.00013698,2]
[333112260,1721873447332,-500.0,0.00013698,2]
[333112262,1721873447341,-7486.34,0.00013698,2]
[333112264,1721873447350,-1663.32,0.00013698,2]
[333112266,1721873447360,-481.13468379,0.00013698,2]
[333115590,1721874368139,10000.0,0.00024,60]
[333115594,1721874446140,-300.0,9.998e-05,2]
[333115595,1721874446163,-83.72291906,9.999e-05,2]
[333115608,1721874568168,-300.0,9.998e-05,2]
[333115609,1721874568190,-204.97372032,9.999e-05,2]
[333115610,1721874568212,-1023.98897767,9.999e-05,2]
[333115611,1721874568235,-340.71954509,9.999e-05,2]
[333115612,1721874568256,-210.90732486,9.999e-05,2]
[333115613,1721874568278,-154.99732778,9.999e-05,2]
[333115614,1721874568301,-345.00246258,9.999e-05,2]
[333115615,1721874568323,-534.18074587,9.999e-05,2]
[333115616,1721874568344,-155.05796057,9.999e-05,2]
[333115617,1721874568366,-375.57156164,9.999e-05,2]
[333115618,1721874568389,-16274.21667808,9.999e-05,2]
[333115619,1721874568410,-3971.85274202,9.999e-05,2]
[333115620,1721874568433,-748.69799232,9.999e-05,2]
[333115621,1721874568455,-155.0022739,0.0001,2]
[333115622,1721874568476,-200.0,0.0001,2]
[333115623,1721874568500,-24900.0,0.00010612,2]
[333115624,1721874568747,-685.57,0.00010959,2]
[333115625,1721874568769,-420.0,0.00010998,2]
[333115626,1721874568791,-400.0,0.0001137,2]
[333115627,1721874568814,-158.343808,0.00011789,2]
[333115628,1721874568840,-158.343808,0.00011912,2]
[333115629,1721874568864,-3146.38011895,0.00012035,2]